bitfinex/quotes_BTCUSD_20260103
["timestamp","ask_amount","ask_price","bid_price","bid_amount"]
[1767472117288,0.01110198,90074.0,90070.0,0.01110247]
[1767472117491,0.03330185,90075.0,90071.0,0.01110235]
[1767472117701,0.0222,90075.0,90071.0,0.01110235]
[1767472117907,0.0222,90075.0,90072.0,0.01110222]
[1767472118573,0.03330185,90075.0,90071.0,0.01110235]
[1767472119735,0.03084385,90075.0,90071.0,0.01105674]
[1767472124763,0.01110198,90074.0,90070.0,0.01110247]
[1767472124925,0.01110198,90074.0,90071.0,0.01110235]
[1767472125920,0.000999,90071.0,90070.0,0.01110247]
[1767472126054,0.0111021,90073.0,90070.0,0.01110247]
[1767472126470,0.01110198,90074.0,90070.0,0.01110247]
[1767472127851,0.00980785,90070.0,90068.0,0.01110272]
[1767472128256,0.00880885,90070.0,90069.0,0.05551299]
[1767472128483,0.01110198,90074.0,90070.0,0.01110247]
[1767472128856,0.01110198,90074.0,90071.0,0.01110235]
[1767472129961,0.13172073,90075.0,90071.0,0.01110235]
[1767472132611,0.13172073,90075.0,90071.0,0.01105674]
[1767472136288,0.13172073,90075.0,90071.0,0.01101114]
[1767472139157,0.13172073,90075.0,90071.0,0.01096553]
[1767472141806,0.01110198,90074.0,90070.0,0.01110247]
[1767472143498,0.01110198,90074.0,90071.0,0.01110235]
[1767472143706,0.03084385,90075.0,90071.0,0.01110235]
[1767472146417,0.019742,90075.0,90072.0,0.01110222]
[1767472146976,0.01110173,90076.0,90072.0,0.01110222]
[1767472149045,0.01110185,90075.0,90071.0,0.01110235]
[1767472149290,0.05766444,90075.0,90071.0,0.01110235]
[1767472149979,0.05766444,90075.0,90071.0,0.01105676]
[1767472150388,0.05766444,90075.0,90071.0,0.01101117]
[1767472152468,0.01110185,90075.0,90071.0,0.01101117]
[1767472155331,0.01110173,90076.0,90072.0,0.01110222]
[1767472168776,0.01110173,90076.0,90072.0,0.51110222]
[1767472168979,0.01110173,90076.0,90073.0,0.0111021]
[1767472170562,0.01110173,90076.0,90072.0,0.51110222]
[1767472175289,0.06661152,90075.0,90072.0,0.4741965]
[1767472175690,0.05551042,90074.0,90072.0,0.4741965]
[1767472175886,0.05551042,90074.0,90072.0,0.47415272]
[1767472176052,0.04606567,90073.0,90072.0,0.37415272]
[1767472176251,0.05551053,90073.0,90072.0,0.30502381]
[1767472176498,0.06661152,90075.0,90072.0,0.30502381]
[1767472176669,0.05551051,90074.0,90072.0,0.30502381]
[1767472176904,0.05551051,90074.0,90072.0,0.30498003]
[1767472177079,0.01110247,90070.0,90066.0,0.01110296]
[1767472177410,0.01110222,90072.0,90067.0,0.01110284]
[1767472177911,0.01110222,90072.0,90068.0,0.01110272]
[1767472178258,0.01110222,90072.0,90068.0,0.01105894]
[1767472178460,0.01110222,90072.0,90068.0,0.00959932]
[1767472178659,0.0111021,90073.0,90069.0,0.01110259]
[1767472179270,0.0111021,90073.0,90068.0,0.00959932]
[1767472179755,0.0111021,90073.0,90068.0,0.00955374]
[1767472180264,0.01110222,90072.0,90068.0,0.00955374]
[1767472180968,0.01110222,90072.0,90062.0,0.01110284]
[1767472180969,0.01110309,90065.0,90062.0,0.01110284]
[1767472181202,0.01110272,90068.0,90065.0,0.010999]
[1767472181348,0.01110259,90069.0,90065.0,0.02110309]
[1767472181554,0.01110259,90069.0,90065.0,0.02081402]
[1767472181852,0.01110259,90069.0,90065.0,0.01110309]
[1767472182056,0.01110259,90069.0,90066.0,0.04791694]
[1767472184112,0.01110259,90069.0,90066.0,0.04762799]
[1767472184481,0.01110259,90069.0,90066.0,0.04733905]
[1767472184826,0.06661527,90070.0,90066.0,0.04733905]
[1767472184827,0.01110247,90070.0,90066.0,0.04733905]
[1767472185027,0.01110247,90070.0,90066.0,0.04729527]
[1767472186627,0.01110247,90070.0,90066.0,0.04724969]
[1767472186790,0.01110247,90070.0,90066.0,0.04696079]
[1767472187027,0.01110247,90070.0,90066.0,0.05806375]
[1767472188715,0.01110259,90069.0,90066.0,0.04696079]
[1767472189075,0.01110259,90069.0,90066.0,0.04667192]
[1767472191403,0.01110247,90070.0,90066.0,0.04662814]
[1767472192321,0.01110259,90069.0,90066.0,0.04662814]
[1767472193337,0.01110259,90069.0,90066.0,0.04633936]
[1767472199857,0.01010359,90069.0,90066.0,0.04633936]
[1767472200405,0.01110247,90070.0,90066.0,0.04633936]
[1767472201011,0.01110247,90070.0,90066.0,0.05744232]
[1767472201306,0.06661411,90071.0,90068.0,0.04653579]
[1767472201498,0.0222,90079.0,90071.0,0.01110235]
[1767472201703,0.05550786,90078.0,90072.0,0.05551073]
[1767472201909,0.01110161,90077.0,90074.0,0.01110198]
[1767472202110,0.03330136,90079.0,90074.0,0.01105641]
[1767472202375,0.01110148,90078.0,90074.0,0.01105641]
[1767472202585,0.01110148,90078.0,90073.0,0.06661222]
[1767472202586,0.01110161,90077.0,90073.0,0.0111021]
[1767472202739,0.01102974,90078.0,90073.0,0.0111021]
[1767472203539,0.01102974,90078.0,90074.0,0.01110198]
[1767472205762,0.01110148,90078.0,90074.0,0.01110198]
[1767472211088,0.01110148,90078.0,90074.0,0.01081396]
[1767472211654,0.06660565,90083.0,90078.0,0.01110148]
[1767472212024,0.0111005,90086.0,90081.0,0.01110112]
[1767472212894,0.01110062,90085.0,90081.0,0.01110112]
[1767472226316,0.01110075,90084.0,90079.0,0.06594243]
[1767472226522,0.01110075,90084.0,90079.0,0.01043565]
[1767472226928,0.0001492,90087.0,90083.0,0.01110087]
[1767472226929,0.01124958,90087.0,90083.0,0.01110087]
[1767472227639,0.0001492,90087.0,90084.0,0.01110075]
[1767472228296,0.0001492,90087.0,90084.0,0.01010175]
[1767472230667,0.01124958,90087.0,90084.0,0.01010175]
[1767472230871,0.01124958,90087.0,90083.0,0.01110087]
[1767472231074,0.0001492,90087.0,90084.0,0.01110075]
[1767472235652,0.0222,90090.0,90087.0,0.000149]
[1767472235815,0.03330001,90090.0,90086.0,0.0111005]
[1767472236824,0.01110001,90090.0,90086.0,0.0111005]
[1767472237026,0.03330001,90090.0,90086.0,0.0111005]
[1767472237815,0.01110013,90089.0,90086.0,0.0111005]
[1767472238526,0.01110013,90089.0,90085.0,0.01110062]
[1767472240992,0.01110025,90088.0,90084.0,0.01110075]
[1767472242323,0.01110038,90087.0,90084.0,0.01110075]
[1767472243222,0.01110025,90088.0,90084.0,0.01110075]
[1767472243419,0.01110025,90088.0,90087.0,0.000999]
[1767472243625,0.01110025,90088.0,90087.0,0.00095343]
[1767472243869,0.01110025,90088.0,90085.0,0.01110062]
[1767472245260,0.01110025,90088.0,90084.0,0.01110075]
[1767472247473,0.01110025,90088.0,90085.0,0.01110062]
[1767472247683,0.01110013,90089.0,90085.0,0.01110062]
[1767472248908,0.01110013,90089.0,90085.0,0.06660367]
[1767472249827,0.08880047,90090.0,90086.0,0.0111005]
[1767472251328,0.01110013,90089.0,90085.0,0.01110062]
[1767472256436,0.01110013,90089.0,90085.0,0.01105505]
[1767472264030,0.01110013,90089.0,90086.0,0.0111005]
[1767472265652,0.01110001,90090.0,90086.0,0.0111005]
[1767472268496,0.01110001,90090.0,90086.0,0.01105493]
[1767472268699,0.03329988,90091.0,90087.0,0.01110038]
[1767472268816,0.01110001,90090.0,90087.0,0.01110038]
[1767472269019,0.01110001,90090.0,90086.0,0.01105493]
[1767472269722,0.01110013,90089.0,90085.0,0.01105505]
[1767472269959,0.01110001,90090.0,90086.0,0.0111005]
[1767472272207,0.01110001,90090.0,90086.0,0.01105493]
[1767472275768,0.03329988,90091.0,90087.0,0.01110038]
[1767472276298,0.01110001,90090.0,90086.0,0.01105493]
[1767472278869,0.01110001,90090.0,90087.0,0.01110038]
[1767472279867,0.00951621,90090.0,90087.0,0.01110038]
[1767472282466,0.00951621,90090.0,90086.0,0.01105493]
[1767472282677,0.00951621,90090.0,90086.0,0.05638078]
[1767472284412,0.00951621,90090.0,90086.0,0.05633521]
[1767472284937,0.00951621,90090.0,90086.0,0.01100936]
[1767472285311,0.0002,90092.0,90089.0,0.01110013]
[1767472285539,0.0002,90092.0,90090.0,0.0554997]
[1767472295065,5.598e-05,90092.0,90090.0,0.0554997]
[1767472299719,0.01109693,90115.0,90110.0,0.2]
[1767472299926,0.010999,90110.0,90109.0,0.0222]
[1767472300126,0.0110973,90112.0,90109.0,0.0222]
[1767472300127,0.04743064,90115.0,90112.0,0.0110973]
[1767472300327,0.04735096,90121.0,90118.0,0.01109656]
[1767472300534,0.01109606,90122.0,90118.0,0.01100765]
[1767472300667,0.06672498,90123.0,90115.0,0.01109693]
[1767472300668,0.01109631,90120.0,90116.0,0.0110968]
[1767472300868,0.06672511,90123.0,90116.0,0.0110968]
[1767472300869,0.01109606,90122.0,90116.0,0.06658043]
[1767472301092,0.01109606,90122.0,90118.0,0.01109656]
[1767472301300,0.0001492,90123.0,90120.0,1e-08]
[1767472301456,0.0001492,90123.0,90120.0,0.01109632]
[1767472301655,0.0001492,90123.0,90121.0,0.05548096]
[1767472301914,0.05547565,90130.0,90125.0,0.0110957]
[1767472301915,0.01109508,90130.0,90125.0,0.0110957]
[1767472302132,0.01109533,90128.0,90125.0,0.0110957]
[1767472302770,0.01109545,90127.0,90122.0,0.01109606]
[1767472302980,0.0665732,90127.0,90122.0,0.01109606]
[1767472303490,0.0110957,90125.0,90121.0,0.01109619]
[1767472304469,0.01109533,90128.0,90121.0,0.01109619]
[1767472304470,0.01109533,90128.0,90123.0,0.01109594]
[1767472304695,0.04735096,90136.0,90123.0,0.01109594]
[1767472304696,0.01109422,90137.0,90129.0,0.0110952]
[1767472304894,0.00029655,90134.0,90131.0,0.06656919]
[1767472305125,0.00029655,90134.0,90131.0,0.01109496]
[1767472305272,0.00029655,90134.0,90133.0,0.05547357]
[1767472305474,0.00029655,90134.0,90131.0,0.06656921]
[1767472306276,0.00029655,90134.0,90133.0,0.05547357]
[1767472306689,0.01109397,90139.0,90135.0,0.01109446]
[1767472306889,0.04735096,90140.0,90137.0,0.01109422]
[1767472307236,0.0001492,90141.0,90137.0,0.01109422]
[1767472307611,0.04750016,90141.0,90137.0,0.01109422]
[1767472307823,0.05859389,90141.0,90137.0,0.01109422]
[1767472308022,0.05859389,90141.0,90135.0,0.06656668]
[1767472308023,0.01109397,90139.0,90135.0,0.01109446]
[1767472308241,0.01109459,90134.0,90130.0,0.0222]
[1767472308433,0.01109397,90139.0,90130.0,0.0222]
[1767472308434,0.0584453,90136.0,90132.0,0.01109483]
[1767472308613,0.0584453,90136.0,90131.0,0.0222]
[1767472308817,0.05844555,90134.0,90131.0,0.0222]
[1767472309036,0.01109446,90135.0,90130.0,0.03329508]
[1767472309837,0.01109446,90135.0,90131.0,0.01109496]
[1767472310980,0.01109422,90137.0,90132.0,0.01109483]
[1767472311562,0.01109434,90136.0,90132.0,0.01109483]
[1767472311933,0.01109446,90135.0,90131.0,0.01109496]
[1767472312539,0.11391569,90138.0,90134.0,0.01109459]
[1767472312782,0.11391569,90138.0,90132.0,0.06656896]
[1767472312783,0.01109422,90137.0,90133.0,0.01109471]
[1767472312977,0.01109434,90136.0,90132.0,0.01109483]
[1767472313354,0.04735096,90135.0,90130.0,0.03876993]
[1767472313577,0.04735096,90135.0,90130.0,0.02898213]
[1767472313780,0.01109434,90136.0,90130.0,0.02898213]
[1767472313989,0.01109434,90136.0,90132.0,0.01109483]
[1767472314608,0.01109422,90137.0,90132.0,0.066569]
[1767472315476,0.01109422,90137.0,90133.0,0.01109471]
[1767472316552,0.01100677,90136.0,90132.0,0.01102312]
[1767472317279,0.01109446,90135.0,90131.0,0.01109496]
[1767472317774,0.01100677,90136.0,90132.0,0.01109483]
[1767472318004,0.06656579,90137.0,90133.0,0.01109471]
[1767472319359,0.01109434,90136.0,90132.0,0.01109483]
[1767472319560,0.01100677,90136.0,90132.0,0.01109483]
[1767472320701,0.01109446,90135.0,90131.0,0.06656967]
[1767472320844,0.01109446,90135.0,90131.0,0.01109496]
[1767472321163,0.01100677,90136.0,90132.0,0.01109483]
[1767472321519,0.01109446,90135.0,90132.0,0.01109483]
[1767472323947,0.01100677,90136.0,90135.0,0.000999]
[1767472324164,0.01100677,90136.0,90133.0,0.01109471]
[1767472324302,0.01109446,90135.0,90132.0,0.01109483]
[1767472325356,0.01109446,90135.0,90131.0,0.01109496]
[1767472326193,0.06647898,90136.0,90135.0,0.000999]
[1767472326802,0.06647898,90136.0,90133.0,0.01109471]
[1767472328031,0.01109446,90135.0,90131.0,0.01109496]
[1767472328241,0.01009546,90135.0,90132.0,0.04625711]
[1767472330476,0.01009546,90135.0,90132.0,0.05735194]
[1767472331396,0.01009546,90135.0,90132.0,0.04625711]
[1767472331750,0.01009546,90135.0,90132.0,0.05735194]
[1767472332201,0.01009546,90135.0,90132.0,0.04625711]
[1767472333304,0.01009546,90135.0,90132.0,0.04525811]
[1767472338107,0.01009546,90135.0,90132.0,0.05635294]
[1767472339197,0.01009546,90135.0,90132.0,0.01109483]
[1767472339362,0.01009546,90135.0,90133.0,0.04625711]
[1767472341043,0.01009546,90135.0,90131.0,0.01109496]
[1767472341259,0.01009546,90135.0,90131.0,0.05735207]
[1767472344126,0.00909646,90135.0,90131.0,0.05735207]
[1767472350377,0.01109459,90134.0,90131.0,0.04625711]
[1767472350582,0.01109459,90134.0,90131.0,0.04525811]
[1767472351940,0.00909646,90135.0,90131.0,0.11182775]
[1767472352703,0.00909646,90135.0,90132.0,0.04967476]
[1767472353623,0.00809746,90135.0,90132.0,0.06076959]
[1767472356544,0.01100677,90136.0,90132.0,0.06076959]
[1767472357354,0.01109446,90135.0,90132.0,0.04967476]
[1767472357555,0.01109446,90135.0,90131.0,0.01104781]
[1767472357674,0.01109459,90134.0,90131.0,0.01104781]
[1767472357873,0.01109446,90135.0,90132.0,0.04967476]
[1767472365258,0.01100677,90136.0,90132.0,0.06076959]
[1767472365714,0.01109446,90135.0,90132.0,0.06076959]
[1767472367755,0.01109446,90135.0,90132.0,0.04967476]
[1767472371399,0.01109446,90135.0,90132.0,0.06076959]
[1767472373149,0.01109446,90135.0,90132.0,0.04967476]
[1767472373495,0.06647907,90136.0,90132.0,0.06076959]
[1767472374910,0.01100677,90136.0,90132.0,0.06076959]
[1767472380235,0.05546604,90146.0,90141.0,0.04900671]
[1767472380465,0.0332925,90151.0,90148.0,0.04900671]
[1767472380674,0.01109225,90153.0,90148.0,0.06009957]
[1767472380889,0.01109213,90154.0,90150.0,0.01109262]
[1767472381096,0.01109225,90153.0,90149.0,0.06009945]
[1767472381296,0.01109213,90154.0,90149.0,0.06009945]
[1767472381497,0.01109213,90154.0,90150.0,1e-08]
[1767472381724,0.01100456,90154.0,90150.0,1e-08]
[1767472381899,0.01109225,90153.0,90150.0,0.01109263]
[1767472382103,0.01109225,90153.0,90150.0,1e-08]
[1767472382319,0.06655352,90153.0,90150.0,1e-08]
[1767472382738,0.06655244,90155.0,90150.0,0.06009934]
[1767472382942,0.06655244,90155.0,90150.0,0.01109263]
[1767472383565,0.011092,90155.0,90151.0,0.04435487]
[1767472383765,0.01109188,90156.0,90152.0,0.01109237]
[1767472384493,0.0222,90157.0,90153.0,0.01109225]
[1767472384925,0.03329176,90157.0,90153.0,0.01109225]
[1767472385522,0.03329176,90157.0,90154.0,0.01109213]
[1767472385740,0.03329176,90157.0,90153.0,0.01109225]
[1767472386205,0.0222,90157.0,90154.0,0.01109213]
[1767472386333,0.0222,90157.0,90153.0,0.01109225]
[1767472386553,0.0222,90157.0,90154.0,0.06655278]
[1767472386733,0.0001492,90159.0,90155.0,0.011092]
[1767472386960,0.0001492,90159.0,90157.0,0.01]
[1767472387362,0.0001492,90159.0,90157.0,0.06545834]
[1767472388191,0.0222,90161.0,90158.0,0.01109163]
[1767472388428,4e-05,90162.0,90159.0,0.01109151]
[1767472388682,4e-05,90162.0,90159.0,0.06654851]
[1767472389395,0.04824119,90164.0,90160.0,0.0165476]
[1767472389596,0.02003367,90165.0,90150.0,0.24900671]
[1767472389802,0.02003367,90165.0,90160.0,0.05545646]
[1767472390015,0.02003367,90165.0,90161.0,0.04900671]
[1767472390198,0.02003367,90165.0,90162.0,0.01109114]
[1767472390439,0.01003367,90165.0,90162.0,0.01109114]
[1767472390648,0.01109004,90171.0,90167.0,0.04900671]
[1767472390894,0.03329016,90170.0,90165.0,0.01109077]
[1767472391108,0.03329016,90170.0,90166.0,0.06009736]
[1767472391323,0.03329016,90170.0,90166.0,0.01109065]
[1767472391544,0.01109028,90169.0,90166.0,0.01109065]
[1767472391760,0.03329016,90170.0,90166.0,0.01109065]
[1767472392069,0.03329016,90170.0,90167.0,0.04900671]
[1767472392274,0.03329016,90170.0,90167.0,0.04896115]
[1767472393364,0.01109077,90165.0,90163.0,0.04900671]
[1767472393993,0.01109065,90166.0,90163.0,0.04900671]
[1767472398910,0.06654293,90168.0,90163.0,0.06009773]
[1767472400029,0.01109053,90167.0,90163.0,0.06009773]
[1767472400843,0.06654293,90168.0,90167.0,0.000999]
[1767472401107,0.06654293,90168.0,90165.0,0.04900671]
[1767472401379,0.0110904,90168.0,90165.0,0.04900671]
[1767472403071,0.06654286,90168.0,90165.0,0.04900671]
[1767472403310,0.01109053,90167.0,90163.0,0.06009773]
[1767472403779,0.01144894,90167.0,90163.0,0.06009773]
[1767472405196,0.01109065,90166.0,90163.0,0.04900671]
[1767472405605,4.5e-05,90163.0,90158.0,0.01109163]
[1767472405801,0.010045,90163.0,90160.0,0.01109139]
[1767472406218,0.01,90163.0,90160.0,0.01109139]
[1767472406803,0.0110909,90164.0,90160.0,0.01109139]
[1767472407004,4.5e-05,90160.0,90159.0,0.01109151]
[1767472407778,4.5e-05,90160.0,90159.0,0.06009822]
[1767472408017,0.0110909,90164.0,90160.0,0.01109139]
[1767472410605,0.01109065,90166.0,90161.0,0.01109127]
[1767472410778,0.0110909,90164.0,90160.0,0.01109139]
[1767472410980,0.0110909,90164.0,90159.0,0.06009822]
[1767472411179,4.5e-05,90160.0,90159.0,0.06009822]
[1767472411621,0.01109114,90162.0,90159.0,0.04900671]
[1767472411939,0.06654503,90165.0,90162.0,0.000954]
[1767472412154,0.06654503,90165.0,90161.0,0.01109127]
[1767472412296,0.01109077,90165.0,90161.0,0.06654747]
[1767472412508,0.01109077,90165.0,90161.0,0.01109127]
[1767472413508,4.5e-05,90161.0,90160.0,0.01109139]
[1767472413859,0.01109077,90165.0,90161.0,0.05869039]
[1767472416523,0.0110909,90164.0,90161.0,0.05869039]
[1767472416688,0.01109077,90165.0,90161.0,0.01109127]
[1767472417674,0.0110909,90164.0,90160.0,0.01109139]
[1767472417988,0.01109077,90165.0,90161.0,0.01109127]
[1767472418188,0.0110909,90164.0,90160.0,0.01109139]
[1767472418440,0.01109077,90165.0,90161.0,0.01109127]
[1767472418839,0.0110909,90164.0,90160.0,0.05869051]
[1767472419155,0.01109077,90165.0,90161.0,0.05869039]
[1767472419783,0.0110909,90164.0,90161.0,0.04759912]
[1767472420235,0.01109077,90165.0,90161.0,0.05869039]
[1767472421271,0.0110909,90164.0,90161.0,0.04759912]
[1767472421707,0.0110909,90164.0,90161.0,0.05869039]
[1767472422228,0.01109077,90165.0,90161.0,0.05869039]
[1767472422429,0.0110909,90164.0,90161.0,0.04759912]
[1767472422630,0.01109077,90165.0,90161.0,0.05869039]
[1767472423152,0.0110909,90164.0,90161.0,0.04759912]
[1767472423425,0.01109077,90165.0,90161.0,0.05869039]
[1767472423598,0.01109065,90166.0,90162.0,0.01109114]
[1767472423814,0.01109065,90166.0,90165.0,0.000954]
[1767472424037,0.01109065,90166.0,90163.0,0.01109102]
[1767472424603,0.01144894,90167.0,90163.0,0.01109102]
[1767472425533,0.01109065,90166.0,90163.0,0.01104602]
[1767472426199,0.01013665,90166.0,90163.0,0.01104602]
[1767472426656,0.00035841,90167.0,90163.0,0.01104602]
[1767472426862,0.00035841,90167.0,90164.0,0.0110909]
[1767472428955,0.00027084,90167.0,90164.0,0.066545]
[1767472429361,0.00027084,90167.0,90164.0,0.0110909]
[1767472430136,0.00027084,90167.0,90165.0,0.05545389]
[1767472430333,0.00027084,90167.0,90164.0,0.0110909]
[1767472430494,0.000954,90165.0,90164.0,0.0110909]
[1767472430697,0.00027084,90167.0,90164.0,0.0110909]
[1767472439236,0.000954,90164.0,90163.0,0.01104602]
[1767472439474,0.00027084,90167.0,90164.0,0.0665454]
[1767472439931,0.00027084,90167.0,90164.0,0.0110909]
[1767472440154,0.00027084,90167.0,90164.0,0.0101369]
[1767472440786,0.00027084,90167.0,90164.0,0.06559101]
[1767472441094,0.00027084,90167.0,90164.0,0.0101369]
[1767472441504,0.01136137,90167.0,90163.0,0.01104602]
[1767472441838,0.01136137,90167.0,90161.0,0.01109127]
[1767472442043,0.01136137,90167.0,90162.0,0.0554553]
[1767472442242,0.01136137,90167.0,90159.0,0.04567716]
[1767472442243,0.01,90162.0,90159.0,0.04567716]
[1767472442453,0.01,90162.0,90140.0,0.4]
[1767472442650,0.01109299,90147.0,90141.0,0.01109373]
[1767472442848,0.0110936,90142.0,90138.0,0.0110941]
[1767472443068,0.0100946,90142.0,90138.0,0.0110941]
[1767472443270,0.01109385,90140.0,90137.0,0.04567716]
[1767472443446,0.06656095,90143.0,90137.0,0.11224225]
[1767472443651,0.01109336,90144.0,90139.0,0.05677113]
[1767472444038,0.06655795,90147.0,90142.0,0.11223867]
[1767472444232,0.01109286,90148.0,90143.0,0.05677064]
[1767472445046,0.01109311,90146.0,90143.0,0.04567716]
[1767472445491,0.01109299,90147.0,90143.0,0.05677064]
[1767472446249,0.00179614,90146.0,90143.0,0.05677064]
[1767472447118,0.01109299,90147.0,90144.0,0.01109336]
[1767472447338,0.01109299,90147.0,90144.0,0.05677052]
[1767472447565,0.01109299,90147.0,90144.0,0.04567716]
[1767472448126,0.06655845,90147.0,90144.0,0.04567716]
[1767472448350,0.06655777,90148.0,90144.0,0.04567716]
[1767472448550,0.0002,90150.0,90144.0,0.01109336]
[1767472448737,0.01109299,90147.0,90143.0,0.05252719]
[1767472448937,0.01109286,90148.0,90144.0,0.01109336]
[1767472449512,0.05546425,90149.0,90144.0,0.01109336]
[1767472449713,0.06675623,90150.0,90144.0,0.01109336]
[1767472449952,0.01109274,90149.0,90145.0,0.01109323]
[1767472452543,0.01129262,90150.0,90146.0,0.01109311]
[1767472453107,0.22182803,90160.0,90150.0,0.01109262]
[1767472453227,0.05545797,90159.0,90151.0,0.05479725]
[1767472453427,0.01109176,90157.0,90152.0,0.01109237]
[1767472453688,0.010999,90152.0,90149.0,0.01109274]
[1767472453982,0.010999,90152.0,90150.0,0.05546311]
[1767472454131,0.01,90152.0,90150.0,0.05546311]
[1767472454335,0.01109188,90156.0,90151.0,0.0110925]
[1767472454544,0.01109188,90156.0,90152.0,0.01109237]
[1767472454755,0.01109188,90156.0,90149.0,0.01109274]
[1767472454756,0.06655204,90155.0,90149.0,0.01109274]
[1767472454960,0.06655204,90155.0,90145.0,0.03329323]
[1767472454961,0.0110925,90151.0,90145.0,0.03329323]
[1767472455184,0.01209137,90152.0,90147.0,0.01109299]
[1767472455401,0.0110925,90151.0,90148.0,0.01109286]
[1767472455774,0.0110925,90151.0,90147.0,0.01109299]
[1767472455957,0.01109262,90150.0,90145.0,0.03329323]
[1767472456160,0.01109237,90152.0,90148.0,0.01109286]
[1767472456360,0.05546117,90154.0,90148.0,0.06655668]
[1767472456612,0.01109237,90152.0,90148.0,0.01109286]
[1767472456761,0.01109237,90152.0,90148.0,0.01104908]
[1767472457602,0.01109237,90152.0,90147.0,0.05546453]
[1767472457603,0.01109237,90152.0,90147.0,0.01109299]
[1767472457868,0.0110925,90151.0,90148.0,0.01109286]
[1767472458176,0.01109237,90152.0,90148.0,0.01109286]
[1767472458850,0.01109225,90153.0,90149.0,0.01109274]
[1767472462682,0.01109237,90152.0,90148.0,0.01109286]
[1767472463669,0.05546117,90154.0,90148.0,0.01109286]
[1767472464571,0.01109225,90153.0,90149.0,0.01109274]
[1767472465417,0.01109213,90154.0,90150.0,0.01109262]
[1767472467279,0.01109213,90154.0,90149.0,0.01109274]
[1767472467280,0.01109225,90153.0,90149.0,0.01109274]
[1767472467931,0.01109213,90154.0,90150.0,0.01109262]
[1767472470212,0.011092,90155.0,90151.0,0.0110925]
[1767472470414,0.01109213,90154.0,90150.0,0.01109262]
[1767472472115,0.01109213,90154.0,90151.0,0.0110925]
[1767472472721,0.011092,90155.0,90151.0,0.0110925]
[1767472472901,0.011092,90155.0,90152.0,0.01109237]
[1767472476485,0.11376863,90159.0,90155.0,0.022091]
[1767472476486,0.01109151,90159.0,90155.0,0.022091]
[1767472476686,0.01109151,90159.0,90155.0,0.021092]
[1767472477052,0.01109163,90158.0,90155.0,0.01]
[1767472477256,0.04531054,90157.0,90154.0,0.01109213]
[1767472477654,0.04531054,90157.0,90153.0,0.06655352]
[1767472477854,0.04431154,90157.0,90153.0,0.06655352]
[1767472478911,0.01109163,90158.0,90154.0,0.01109213]
[1767472480569,0.01109151,90159.0,90156.0,0.01109188]
[1767472480793,0.01109077,90165.0,90158.0,0.05545819]
[1767472480995,0.04531054,90166.0,90163.0,0.06654562]
[1767472482046,0.04531054,90166.0,90165.0,0.05545389]
[1767472482248,0.04531054,90166.0,90163.0,0.06654562]
[1767472483422,0.04531054,90166.0,90165.0,0.05545389]
[1767472483578,0.00027084,90167.0,90165.0,0.05445489]
[1767472483779,0.04558138,90167.0,90164.0,0.0110909]
[1767472484392,0.00027084,90167.0,90164.0,0.0110909]
[1767472485067,0.00027084,90167.0,90165.0,0.05545389]
[1767472487397,0.00018327,90167.0,90165.0,0.05545389]
[1767472487741,2.7e-07,90167.0,90165.0,0.05545389]
[1767472494265,2.7e-07,90167.0,90165.0,0.05527089]
[1767472495250,0.01,90165.0,90164.0,0.0110909]
[1767472498421,2.7e-07,90167.0,90164.0,0.0110909]
[1767472499325,2.7e-07,90167.0,90165.0,0.05545389]
[1767472500569,2.7e-07,90167.0,90164.0,0.0110909]
[1767472502872,2.7e-07,90167.0,90164.0,0.066545]
[1767472503277,2.7e-07,90167.0,90166.0,0.05545327]
[1767472504358,0.01,90166.0,90164.0,0.06654497]
[1767472504563,2.7e-07,90167.0,90165.0,0.05545333]
[1767472505308,2.7e-07,90167.0,90164.0,0.01654497]
[1767472505518,2.7e-07,90167.0,90165.0,0.05545333]
[1767472506361,2.7e-07,90167.0,90166.0,0.04885083]
[1767472508353,0.01108942,90176.0,90171.0,0.01109004]
[1767472508354,0.01108954,90175.0,90171.0,0.01109004]
[1767472508566,0.22823251,90194.0,90177.0,0.04885083]
[1767472508804,0.06240736,90209.0,90177.0,0.04885083]
[1767472508805,0.0110877,90190.0,90182.0,0.01108868]
[1767472509043,0.06215868,90224.0,90187.0,0.01108807]
[1767472509044,0.04797125,90192.0,90187.0,0.01108807]
[1767472509280,0.04797125,90190.0,90187.0,0.01108807]
[1767472509522,0.04797125,90190.0,90187.0,0.06652842]
[1767472509727,0.04797125,90190.0,90182.0,0.06653197]
[1767472509930,0.04797125,90190.0,90186.0,0.01108819]
[1767472510149,0.04797125,90190.0,90187.0,0.01108807]
[1767472510377,9.933e-05,90192.0,90189.0,0.01108782]
[1767472510615,9.933e-05,90192.0,90190.0,0.01]
[1767472510824,9.933e-05,90192.0,90189.0,0.01108782]
[1767472511025,9.933e-05,90192.0,90189.0,0.01008882]
[1767472511246,0.01118678,90192.0,90187.0,0.01108807]
[1767472511447,0.05915803,90192.0,90187.0,0.01108807]
[1767472511683,0.05905895,90190.0,90185.0,0.01108831]
[1767472512087,0.04797125,90190.0,90186.0,0.01108819]
[1767472512512,0.04797125,90190.0,90187.0,0.01108807]
[1767472512944,0.05905895,90190.0,90186.0,0.01108819]
[1767472513356,0.04797125,90190.0,90187.0,0.01108807]
[1767472514217,0.04797125,90190.0,90187.0,0.06652827]
[1767472514438,0.04697225,90190.0,90187.0,0.06652827]
[1767472515100,0.04688467,90190.0,90187.0,0.06652827]
[1767472515478,0.04679709,90190.0,90187.0,0.01008907]
[1767472522255,0.04679709,90190.0,90187.0,0.01108807]
[1767472523002,0.0467095,90190.0,90187.0,0.01108807]
[1767472523280,0.0466627,90190.0,90187.0,0.01108807]
[1767472523477,0.0465751,90190.0,90187.0,0.01108807]
[1767472525663,0.04559775,90190.0,90187.0,0.06652788]
[1767472527618,0.04559775,90190.0,90188.0,0.05543922]
[1767472527822,0.04559775,90190.0,90184.0,0.05544182]
[1767472528028,0.04797125,90188.0,90186.0,0.01108819]
[1767472529075,0.05905895,90190.0,90184.0,0.06653026]
[1767472529251,0.03732055,90188.0,90183.0,0.01108856]
[1767472529514,0.0110877,90190.0,90181.0,0.01108881]
[1767472529674,0.01108782,90189.0,90185.0,0.01108831]
[1767472529879,0.0110877,90190.0,90185.0,0.01108831]
[1767472530190,0.0110877,90190.0,90186.0,0.01108819]
[1767472530968,0.0110877,90190.0,90180.0,0.04598904]
[1767472530969,0.01108819,90186.0,90182.0,0.01108868]
[1767472531181,0.01108794,90188.0,90184.0,0.01108844]
[1767472531443,0.0110877,90190.0,90186.0,0.01208719]
[1767472531620,9.933e-05,90192.0,90185.0,0.01108831]
[1767472531850,0.0222,90191.0,90188.0,0.05543921]
[1767472532771,0.0222,90191.0,90189.0,0.01108782]
[1767472534170,0.0222,90191.0,90185.0,0.01108831]
[1767472534580,0.0222,90191.0,90187.0,0.01108807]
[1767472535262,0.0222,90191.0,90188.0,0.01108794]
[1767472535454,0.0222,90191.0,90188.0,0.06652731]
[1767472536254,0.0222,90191.0,90188.0,0.01108794]
[1767472536487,0.0222,90191.0,90189.0,0.05543913]
[1767472537878,0.0222,90191.0,90189.0,0.10177476]
[1767472538059,0.0222,90191.0,90189.0,0.04633563]